[Event "44th Chess Olympiad Women 2022"]
[Site "Chennai"]
[Date "2022.07.30"]
[Round "2.2"]
[White "Okuyaz, Duru"]
[Black "Buksa, Nataliya"]
[Result "0-1"]
[WhiteElo "2090"]
[BlackElo "2401"]
[Annotator "TA"]
[PlyCount "144"]
[EventDate "2022.??.??"]
[TimeControl "60"]

{[%evp 14,144,25,20,20,19,28,17,12,8,16,6,20,-2,0,-22,19,0,0,0,29,15,0,-20,24,
43,44,35,46,0,0,-6,56,-38,-36,-48,-9,-143,-142,-156,-154,-162,-163,-167,-162,
-233,-160,-254,-189,-245,-242,-278,-241,-285,-277,-338,-341,-341,-317,-362,
-327,-326,-328,-331,-313,-354,-330,-385,-377,-466,-477,-446,-465,-558,-412,
-382,-338,-322,-321,-321,-316,-334,-225,-325,-314,-275,-109,-400,-386,-477,
-464,-455,-479,-452,-420,-407,-339,-340,-358,-346,-293,-285,-273,-264,-264,
-285,-285,-434,-445,-366,-240,-768,-735,-812,-637,-564,-1232,-1104,-1142,-992,
-1271,-1344,-1252,-1029,-787,-2433,-1654,-6103,-6087,-5539,-5302,-2504,-1793]} 
1. e4 {[%emt 0:00:03] Gershon,A} c5 {[%emt 0:00:04]} 2. Nf3 {[%emt 0:00:06]}
Nc6 {[%emt 0:00:04]} 3. Bb5 {[%emt 0:00:07]} g6 {[%emt 0:00:16]} 4. O-O {
[%emt 0:00:06]} Bg7 {[%emt 0:00:04]} 5. Re1 {[%emt 0:00:11]} Nf6 {[%emt 0:00:
00]} 6. Bxc6 {[%emt 0:00:10]} dxc6 {[%emt 0:01:18]} 7. d3 {[%emt 0:00:13]} O-O
{[%emt 0:02:47]} 8. h3 {[%emt 0:00:08]} Ne8 {[%emt 0:08:34] B31: Sicilian: 2...
Nc6 3 Bb5 g6.} 9. e5 {[%emt 0:00:27]} Nc7 {[%emt 0:00:22]} 10. a4 {[%emt 0:00:
00]} a5 {[%emt 0:00:56] The position is equal.} 11. Be3 {[%emt 0:10:11]} b6 {
[%emt 0:02:09]} 12. Nbd2 {[%emt 0:07:06]} Nd5 {[%emt 0:11:34]} 13. Ne4 {
[%emt 0:05:35]} h6 {[%emt 0:08:10]} 14. Bd2 {[%emt 0:18:47] [#]} Be6 $146 {
[%emt 0:01:48]} (14... f5 $5 {[%cal Rf5e4]} 15. Ng3 Qd7 $11) ({Predecessor:} 
14... Kh7 15. Ng3 f5 16. Qe2 Qe8 17. Rad1 f4 18. Ne4 g5 19. c4 Nc7 20. Bc3 Ne6
{1-0 (60) Peng,X (2574)-Bu,X (2465) Shenyang 1999 CBM 073 [Gershon,A]}) 15. c3
{[%emt 0:06:18][%cal Yc2c3,Yc3c4]} Nc7 {[%emt 0:02:46]} 16. Qc2 {[%emt 0:07:03]
} c4 {[%emt 0:09:34]} 17. dxc4 {[%emt 0:04:48]} Bxc4 {[%emt 0:00:00]} 18. Rad1
{[%emt 0:00:10][%cal Yd2h6]} Qc8 {[%emt 0:01:02]} 19. b3 {[%emt 0:03:37]} Be6 {
[%emt 0:03:33]} 20. c4 {[%emt 0:00:28]} c5 {[%emt 0:03:13]} 21. Qc1 {[%emt 0:
04:03]} (21. Nh4 $14) 21... Kh7 $1 $11 {[%emt 0:00:30]} 22. Nc3 {[%emt 0:00:23]
} Qb7 {[%emt 0:02:16]} (22... Rd8 $11) 23. Bf4 {[%emt 0:00:00] [#]} (23. Re4
$14 Bf5 24. Rh4) 23... Bxh3 $1 $15 {[%emt 0:02:43]} 24. Nd5 $1 {[%emt 0:08:33]}
Be6 {[%emt 0:05:54][%cal Rc7d5]} 25. Ne3 {[%emt 0:01:21]} (25. Nxe7 $11 Rae8
26. Ng5+ hxg5 27. Bxg5) 25... Rad8 $17 {[%emt 0:03:25]} 26. Kh2 {[%emt 0:00:40]
} Qa8 {[%emt 0:04:19]} 27. Rxd8 {[%emt 0:03:19]} Rxd8 {[%emt 0:00:33]} 28. Rh1
{[%emt 0:00:45][%cal Yf4h6]} Kg8 {[%emt 0:04:45]} 29. Kg1 {[%emt 0:00:39]} (29.
Rd1 $142) 29... h5 {[%emt 0:00:40]} 30. Ng5 {[%emt 0:00:00] Against Qe4} (30.
Kh2 $17 {might work better.}) 30... Qc6 {[%emt 0:00:00]} 31. Qc2 {[%emt 0:01:
18]} (31. Kh2 $142) 31... Bc8 {[%emt 0:00:45]} 32. f3 {[%emt 0:03:20]} Kf8 {
[%emt 0:07:17]} 33. Bg3 {[%emt 0:03:20]} Ne6 {[%emt 0:00:00]} 34. Ne4 {[%emt 0:
00:21]} Nd4 {[%emt 0:00:14]} 35. Qb2 {[%emt 0:00:31]} Nf5 {[%emt 0:02:41]} 36.
Nd5 {[%emt 0:00:43]} Nxg3 {[%emt 0:01:15]} 37. Nxg3 {[%emt 0:00:04]} Qe6 {
[%emt 0:00:05]} 38. f4 {[%emt 0:00:24]} Bb7 {[%emt 0:00:00]} 39. Ne3 {[%emt 0:
00:36]} Qd7 {[%emt 0:00:33]} 40. Ngf1 {[%emt 0:00:51]} Qd3 {[%emt 0:04:25]} 41.
Rh3 {[%emt 0:05:04]} Qe4 {[%emt 0:06:36]} 42. Qf2 {[%emt 0:01:06]} Rd3 {
[%emt 0:00:26] Prevents Nd5.} 43. f5 {[%emt 0:07:06]} Kg8 {[%emt 0:06:45]} 44.
e6 {[%emt 0:05:49]} fxe6 {[%emt 0:11:02]} 45. fxg6 {[%emt 0:06:52]} Qxg6 {
[%emt 0:00:10]} 46. Qf4 {[%emt 0:03:26] Qb8+ is the strong threat.} e5 {
[%emt 0:01:44]} 47. Qf2 {[%emt 0:01:05][%cal Ye3f5]} Be4 {[%emt 0:03:40]
Inhibits Nf5. Strongly threatening ...Bh6.} ({Much less strong is} 47... Rxb3 {
[#]} 48. Nf5 $1 Qxg2+ 49. Qxg2 Bxg2 50. Rxb3 $18) 48. Rg3 {[%emt 0:03:24]} (48.
Qe2 $142) 48... Qf7 $19 {[%emt 0:00:43]} 49. Qe2 {[%emt 0:00:00]} Kh7 $2 {
[%emt 0:01:32]} (49... Rxb3 $19 {is more deadly. aiming for ... Bg6.} 50. Nd2
Rb2) 50. Nd2 $2 {[%emt 0:00:48] Loses the game.} (50. Rh3 $17) 50... Bg6 {
[%emt 0:00:43]} 51. Nf3 {[%emt 0:00:08]} Qf4 {[%emt 0:00:00]} 52. Nf1 {[%emt 0:
01:43][%cal Yg3g6]} e4 {[%emt 0:02:34]} 53. Ng5+ {[%emt 0:00:06]} Kh6 {[%emt 0:
00:38]} 54. Ne6 {[%emt 0:01:26]} Bd4+ {[%emt 0:00:00]} 55. Nxd4 {[%emt 0:00:33]
And now Ne6 would win.} Rxg3 {[%emt 0:02:07] Chess con chili.} ({And not} 55...
cxd4 56. Rxd3 exd3 57. Qxe7 $17) 56. Ne6 {[%emt 0:00:49]} Qd6 {[%emt 0:00:28]}
({Inferior is} 56... Qc1 57. Qf2 h4 58. Qf8+ Kh5 59. Nf4+ Kg5 60. Nd5 $11) 57.
Nxg3 {[%emt 0:00:31]} Qxe6 {[%emt 0:00:00] Endgame KQB-KQN} 58. Qe3+ {[%emt 0:
00:05]} Kh7 {[%emt 0:00:12]} 59. Ne2 {[%emt 0:00:22]} Qf6 {[%emt 0:00:19]} 60.
Nf4 {[%emt 0:00:17]} (60. Ng3 $142) 60... Qd4 {[%emt 0:01:37]} 61. Kf2 {
[%emt 0:00:05]} Bf7 {[%emt 0:00:49]} 62. Nh3 $2 {[%emt 0:00:36]} (62. Ne2 Qf6+
63. Ke1) 62... Kg6 {[%emt 0:01:02] Black is clearly winning.} 63. Nf4+ {
[%emt 0:00:48]} Kf5 {[%emt 0:00:08]} 64. Ne2 {[%emt 0:00:14]} Qxe3+ {[%emt 0:
00:46]} 65. Kxe3 {[%emt 0:00:02] KB-KN} h4 {[%emt 0:00:34]} 66. Nc3 {[%emt 0:
01:06]} Kg4 {[%emt 0:00:14]} 67. Ne2 {[%emt 0:00:36]} Bg6 {[%emt 0:00:18]} 68.
Nf4 {[%emt 0:00:09]} Bf5 {[%emt 0:00:00] Hoping for ...Kg3.} 69. Nd5 {[%emt 0:
00:16]} Kg3 {[%emt 0:00:05]} 70. Nxe7 {[%emt 0:00:13]} Bh7 {[%emt 0:00:40]} 71.
Nd5 {[%emt 0:00:08]} Kxg2 {[%emt 0:00:00] ( -> ...h3)} 72. Nf4+ {[%emt 0:00:20]
} Kf1 {[%emt 0:00:33] Weighted Error Value: White=0.39/Black=0.23 (precise)}
0-1

[Event "44th Chess Olympiad Women 2022"]
[Site "Chennai"]
[Date "2022.07.30"]
[Round "2.2"]
[White "Osmak, Yuliia"]
[Black "Kocyigit, Buse Naz"]
[Result "1-0"]
[WhiteElo "2420"]
[BlackElo "1991"]
[Annotator "TA"]
[PlyCount "67"]
[EventDate "2022.??.??"]
[TimeControl "60"]

{[%evp 19,67,71,73,72,79,77,90,89,101,79,83,85,119,78,91,87,295,293,293,270,
277,293,382,331,367,348,437,371,579,577,770,782,1052,1021,1147,1147,1129,1060,
1719,1604,2259,2102,2564,2316,2921,2733,29982,29983,6849,1300]} 1. d4 {[%emt 0:
00:00]} Nf6 {[%emt 0:00:06]} 2. c4 {[%emt 0:00:04]} g6 {[%emt 0:00:03]} 3. Nc3
{[%emt 0:00:04]} Bg7 {[%emt 0:00:06]} 4. e4 {[%emt 0:00:04]} d6 {[%emt 0:00:05]
} 5. Be2 {[%emt 0:00:04]} O-O {[%emt 0:00:10]} 6. Be3 {[%emt 0:00:03]} Na6 {
[%emt 0:00:18]} 7. Nf3 {[%emt 0:00:12]} c5 {[%emt 0:00:25]} 8. O-O {[%emt 0:00:
00]} cxd4 {[%emt 0:16:30]} 9. Nxd4 {[%emt 0:00:18]} Nc5 {[%emt 0:00:10]} 10. f3
{[%emt 0:00:11]} Bd7 {[%emt 0:02:40]} 11. Rc1 {[%emt 0:04:35] A31: Symmetrical
English: 2 Nf3 Nf6 3 d4.} Rc8 {[%emt 0:01:33]} 12. b4 {[%emt 0:06:17][%cal
Yb2b4,Yb4a5]} Ne6 {[%emt 0:01:37]} 13. Nb3 {[%emt 0:00:25] White is better.} b6
{[%emt 0:13:08]} 14. Qd2 {[%emt 0:03:17]} Bc6 {[%emt 0:11:08]} 15. Rfd1 {
[%emt 0:07:43] [#]} a5 $146 {[%emt 0:09:43]} ({Predecessor:} 15... Qc7 16. a4
Qb8 17. b5 Bd7 18. a5 Rfd8 19. axb6 axb6 20. Nd5 Nxd5 21. cxd5 Rxc1 22. Rxc1 {
0-1 (40) Kaczmarska,J (1980)-Kubicka,A (2168) Krakow 2019}) 16. Nd5 {[%emt 0:
05:22]} Nd7 {[%emt 0:03:20]} 17. bxa5 {[%emt 0:02:18] 0x0.00168076112ddp-1022s
more active pieces.} Nec5 $2 {[%emt 0:14:57] [#] A mistake that costs the game.
} (17... bxa5 $16 18. Nxa5 (18. Qxa5 Re8 $14) 18... Ba4) 18. Nxb6 $18 {[%emt 0:
04:20]} Nxb6 {[%emt 0:00:09]} 19. Nxc5 {[%emt 0:00:00]} ({Less strong is} 19.
axb6 Qxb6 20. Rb1 Qa6 $14) 19... Na4 {[%emt 0:06:15]} 20. Nb3 {[%emt 0:05:00]}
f5 {[%emt 0:07:38]} 21. exf5 {[%emt 0:03:13]} Rxf5 {[%emt 0:01:50]} 22. c5 {
[%emt 0:04:58][%cal Rc5d6]} d5 {[%emt 0:02:05]} 23. f4 {[%emt 0:03:38]} e5 {
[%emt 0:06:44]} (23... Nb2 {was necessary.} 24. Bg4 Rf7 25. Bxc8 Qxc8) 24. Bg4
{[%emt 0:01:18]} exf4 {[%emt 0:01:15]} 25. Bd4 {[%emt 0:00:00]} Qg5 {[%emt 0:
00:32]} 26. Bxf5 {[%emt 0:00:29]} Qxf5 {[%emt 0:00:31]} 27. Bxg7 {[%emt 0:00:
27]} Kxg7 {[%emt 0:00:21]} 28. Nd4 {[%emt 0:00:17]} Qg4 {[%emt 0:00:39]} 29.
Nxc6 {[%emt 0:00:35]} Rxc6 {[%emt 0:00:08]} 30. Qd4+ {[%emt 0:00:06]} Rf6 {
[%emt 0:00:50]} 31. Qxa4 {[%emt 0:00:33]} Qe2 {[%emt 0:00:00]} 32. Re1 {
[%emt 0:00:50]} Qd2 {[%emt 0:00:11]} 33. Rcd1 {[%emt 0:00:29]} Qc3 {[%emt 0:00:
11]} 34. Qd4 {[%emt 0:00:21] Weighted Error Value: White=0.13 (very precise) /
Black=1.10} 1-0

[Event "44th Chess Olympiad Women 2022"]
[Site "Chennai"]
[Date "2022.07.30"]
[Round "2.2"]
[White "Ushenina, Anna"]
[Black "Aydin, Gulenay"]
[Result "1-0"]
[WhiteElo "2423"]
[BlackElo "2100"]
[Annotator "TA"]
[PlyCount "103"]
[EventDate "2022.??.??"]
[TimeControl "60"]

{[%evp 22,103,35,27,45,33,29,30,43,40,47,39,46,37,29,29,29,29,29,24,68,62,64,
64,66,59,55,56,64,54,66,56,97,100,103,102,111,71,96,0,124,90,97,90,129,126,127,
89,94,73,60,52,86,31,84,84,113,115,290,306,295,291,731,669,697,644,1718,1666,
1471,1381,1148,1139,1146,1090,1645,1214,1086,939,1561,1481,29988,29989,29990,
29991]} 1. e4 {[%emt 0:00:09]} c5 {[%emt 0:01:56]} 2. Nf3 {[%emt 0:00:06]} d6 {
[%emt 0:00:13]} 3. Bb5+ {[%emt 0:00:18]} Bd7 {[%emt 0:00:05]} 4. Bxd7+ {
[%emt 0:00:14]} Qxd7 {[%emt 0:00:02]} 5. c4 {[%emt 0:00:29]} Nc6 {[%emt 0:00:
00]} 6. Nc3 {[%emt 0:00:07]} g6 {[%emt 0:02:05]} 7. d4 {[%emt 0:00:15]} cxd4 {
[%emt 0:00:13]} 8. Nxd4 {[%emt 0:00:04]} Bg7 {[%emt 0:00:12]} 9. Be3 {[%emt 0:
00:00]} Nf6 {[%emt 0:00:44]} 10. f3 {[%emt 0:00:09]} O-O {[%emt 0:01:15]} 11.
O-O {[%emt 0:00:07]} Rac8 {[%emt 0:18:57]} 12. b3 {[%emt 0:01:47]} Qd8 {
[%emt 0:11:46] B52: Sicilian: Moscow Variation with 3...Bd7.} 13. Rc1 {[%emt 0:
00:00]} Qa5 {[%emt 0:05:40]} 14. Qd2 {[%emt 0:28:04]} Rfd8 {[%emt 0:03:24]
White has an edge.} 15. Rfd1 {[%emt 0:02:18]} a6 {[%emt 0:13:29]} 16. Nxc6 {
[%emt 0:18:53] [#]} Rxc6 $146 {[%emt 0:24:43]} ({Predecessor:} 16... bxc6 17.
Qf2 Nd7 18. Na4 c5 19. Kh1 Ne5 20. Bd2 Qc7 21. Bc3 {½-½ (21) Semianiuk,K 
(2102)-Benidze,G (1965) Maribor 2012}) 17. a4 {[%emt 0:00:30]} Nd7 {[%emt 0:00:
00]} 18. Nd5 {[%emt 0:09:25]} Qxd2 {[%emt 0:00:15]} 19. Bxd2 {[%emt 0:06:59]}
Kf8 {[%emt 0:00:34]} 20. Bg5 {[%emt 0:00:58]} Nf6 {[%emt 0:03:40]} 21. Nxf6 {
[%emt 0:09:16] White is more active.} Bxf6 {[%emt 0:00:06]} 22. Bxf6 {[%emt 0:
00:00]} exf6 $14 {[%emt 0:00:02] Endgame KRR-KRR} 23. Rd5 {[%emt 0:00:00]} Ke7
{[%emt 0:00:47]} 24. Rcd1 {[%emt 0:00:26]} Rb8 {[%emt 0:01:59]} 25. Kf2 {
[%emt 0:01:27]} h5 {[%emt 0:02:12]} 26. Ke3 {[%emt 0:00:41]} Rbc8 {[%emt 0:01:
15]} 27. h4 {[%emt 0:00:44]} Rb6 {[%emt 0:00:59]} 28. R1d3 {[%emt 0:00:00]}
Rbc6 {[%emt 0:01:22]} 29. Kf4 {[%emt 0:00:56]} Rh8 {[%emt 0:00:35]} 30. Ke3 {
[%emt 0:00:35]} (30. a5 $16) 30... Ke6 {[%emt 0:00:38]} (30... Rhc8 $1 $11) 31.
Kd4 {[%emt 0:01:34]} Ke7 {[%emt 0:00:37]} 32. Rd1 {[%emt 0:01:50]} Rb6 {
[%emt 0:00:26]} 33. Kc3 {[%emt 0:00:42]} Rc6 {[%emt 0:00:12]} 34. Rh1 {[%emt 0:
00:00]} Rc5 {[%emt 0:01:01]} 35. Kd4 {[%emt 0:00:16]} Rxd5+ {[%emt 0:00:35]}
36. exd5 $16 {[%emt 0:00:49] KR-KR} ({Of course not} 36. cxd5 Rc8 $11) 36...
Kd7 {[%emt 0:00:34] [#]} 37. Re1 {[%emt 0:00:19]} (37. a5 $1 $16) 37... Rc8 {
[%emt 0:00:33]} (37... a5 $1 $14) 38. a5 {[%emt 0:00:36]} Rb8 {[%emt 0:00:28]}
39. b4 {[%emt 0:00:18]} b6 $2 {[%emt 0:00:30] [#] This move loses the game for
Black.} (39... g5 $16) 40. axb6 $1 $18 {[%emt 0:00:24]} Rxb6 {[%emt 0:00:02]}
41. Kc3 {[%emt 0:30:48] Threatens to win with Ra1.} f5 $2 {[%emt 0:12:28]} (
41... Rb8 42. Ra1 Ra8) 42. Ra1 {[%emt 0:00:00]} Kc7 {[%emt 0:07:38]} 43. c5 {
[%emt 0:00:00]} dxc5 {[%emt 0:06:41]} 44. bxc5 {[%emt 0:00:00]} Rb5 {[%emt 0:
00:00]} 45. Kc4 {[%emt 0:00:00]} Kb7 {[%emt 0:01:22]} 46. Re1 {[%emt 0:00:00]
White threatens Re7+ and mate.} Rb2 {[%emt 0:00:36]} 47. Re7+ {[%emt 0:00:00]}
Kc8 {[%emt 0:00:11]} 48. d6 {[%emt 0:00:00] c6 would kill now.} Rd2 {[%emt 0:
00:00]} 49. Rxf7 {[%emt 0:00:00] Strongly threatening Ra7.} Kd8 {[%emt 0:01:12]
} 50. Ra7 {[%emt 0:00:00]} Rxg2 {[%emt 0:00:38]} 51. c6 {[%emt 0:00:00][%cal
Ra7a8]} Rc2+ {[%emt 0:00:30]} 52. Kd5 {[%emt 0:00:00] Weighted Error Value:
White=0.11 (very precise) /Black=0.54} 1-0

[Event "44th Chess Olympiad Women 2022"]
[Site "Chennai"]
[Date "2022.07.30"]
[Round "2.3"]
[White "Baginskaite, Kamile"]
[Black "Javakhishvili, Lela"]
[Result "1/2-1/2"]
[WhiteElo "2134"]
[BlackElo "2476"]
[Annotator "TA"]
[PlyCount "81"]
[EventDate "2022.??.??"]
[TimeControl "60"]

{[%evp 19,81,45,48,48,53,43,64,25,22,9,14,0,0,0,12,0,0,0,0,0,0,0,0,0,0,0,0,0,0,
0,0,0,0,0,-6,-7,0,-28,-27,-72,-66,-66,-70,-62,-62,-75,-74,-94,0,-1,0,-31,0,0,0,
0,0,0,0,0,8,8,25,26]} 1. d4 {[%emt 0:00:05]} g6 {[%emt 0:00:10]} 2. Nf3 {
[%emt 0:00:32]} Bg7 {[%emt 0:00:14]} 3. c4 {[%emt 0:02:01]} c5 {[%emt 0:00:26]}
4. d5 {[%emt 0:01:47]} Nf6 {[%emt 0:01:13]} 5. Nc3 {[%emt 0:00:26]} O-O {
[%emt 0:00:14]} 6. e4 {[%emt 0:05:41]} e6 {[%emt 0:00:16]} 7. Be2 {[%emt 0:00:
00]} exd5 {[%emt 0:02:40]} 8. exd5 {[%emt 0:04:07]} d6 {[%emt 0:02:03]} 9. O-O
{[%emt 0:06:51]} Re8 {[%emt 0:05:44]} 10. h3 {[%emt 0:04:06]} Bf5 {[%emt 0:00:
00]} 11. Bd3 {[%emt 0:04:41] aiming for Bxf5. E91: King's Indian: Classical: 6
Be2, unusual replies including 6...c5 and 6...Bg4.} Qd7 {[%emt 0:10:30] [#]}
12. Bxf5 $146 {[%emt 0:16:54]} ({Predecessor:} 12. Qc2 Bxh3 13. gxh3 Qxh3 14.
Nh2 Nh5 15. Ne2 Qh4 16. Kg2 Nd7 17. f4 b5 18. Rf3 bxc4 19. Bxc4 {½-½ (57)
Czerw,D (2286)-Karolczuk,I (2118) Ustron 2020}) 12... Qxf5 {[%emt 0:01:48]} 13.
Nb5 {[%emt 0:00:05] White is slightly better.} (13. Qb3 $5 {[%cal Rb3b7]})
13... Qd7 {[%emt 0:00:19]} 14. Bf4 {[%emt 0:03:36]} Ne4 {[%emt 0:03:33]} 15.
Qb3 {[%emt 0:02:18]} a6 {[%emt 0:12:00]} 16. Nc3 {[%emt 0:01:24]} b5 {[%emt 0:
00:00]} 17. Rfe1 {[%emt 0:03:09]} Bxc3 {[%emt 0:04:17]} 18. bxc3 {[%emt 0:00:
00]} Qf5 $1 {[%emt 0:01:29]} 19. Bh2 {[%emt 0:04:46]} Nd7 {[%emt 0:01:50]} 20.
cxb5 {[%emt 0:00:48]} axb5 {[%emt 0:00:38]} 21. Qxb5 {[%emt 0:00:38]} Nxc3 {
[%emt 0:02:43]} 22. Qc6 {[%emt 0:05:25]} Rec8 {[%emt 0:26:30]} ({Don't take} 
22... Nxd5 23. Nh4 Qh5 24. Rxe8+ (24. Qxd7 Nf6 $16) 24... Rxe8 25. Qxd7 $16)
23. Qxd6 {[%emt 0:00:59] Strongly threatening Ne5.} Qxd5 {[%emt 0:00:33]} (
23... Nxd5 $2 24. Nh4 Qh5 25. Qxd7 $18) 24. Red1 {[%emt 0:10:07]} Qxd6 {
[%emt 0:00:45]} 25. Rxd6 {[%emt 0:00:06]} Nf8 {[%emt 0:02:19]} 26. Rd2 {
[%emt 0:00:31][%cal Yd6d2,Yd2c2,Yc2c4]} f6 {[%emt 0:03:37]} 27. Rc2 {[%emt 0:
05:19]} Nd5 {[%emt 0:00:45]} 28. Rac1 {[%emt 0:01:37]} Ne6 {[%emt 0:00:00]} 29.
Bd6 {[%emt 0:01:20][%cal Rd6c5]} Rc6 {[%emt 0:03:14]} 30. Bg3 {[%emt 0:03:08]}
({Don't blunder} 30. Bxc5 $2 Rac8 31. g3 Kf7 $19) 30... Nb4 {[%emt 0:01:20]
[%csl Ya2,Yc2] Pair of Knights!} 31. Rc4 {[%emt 0:01:12][%cal Yc4b4] [#] And
now Rxb4! would win.} Nxa2 {[%emt 0:01:02]} 32. Rb1 {[%emt 0:00:00]} Rca6 {
[%emt 0:02:31]} 33. Rb7 {[%emt 0:00:27]} R8a7 {[%emt 0:02:13]} (33... Nb4 $17)
34. Rxa7 $1 $11 {[%emt 0:00:52]} Rxa7 {[%emt 0:00:01]} 35. Nd2 {[%emt 0:00:06]}
f5 {[%emt 0:00:53]} 36. Nb3 {[%emt 0:00:46]} Ra6 {[%emt 0:00:00]} 37. f3 {
[%emt 0:01:29]} ({Wrong is} 37. Nxc5 $2 Rc6 38. Rc2 Rxc5 $19) 37... Rc6 {
[%emt 0:00:41]} 38. Be1 {[%emt 0:01:38] Against Nb4} Rc7 {[%emt 0:00:00]} 39.
Ba5 {[%emt 0:01:13]} Ra7 {[%emt 0:00:23]} 40. Nxc5 {[%emt 0:00:38]} Kf7 {
[%emt 0:01:10]} 41. Nxe6 {[%emt 0:04:09] Weighted Error Value: White=0.07 
(flawless) /Black=0.08 (flawless)} 1/2-1/2

[Event "44th Chess Olympiad Women 2022"]
[Site "Chennai"]
[Date "2022.07.30"]
[Round "2.3"]
[White "Melia, Salome"]
[Black "Zaksaite, Salomeja"]
[Result "1-0"]
[WhiteElo "2384"]
[BlackElo "2212"]
[Annotator "TA"]
[PlyCount "84"]
[EventDate "2022.??.??"]
[TimeControl "60"]

{[%evp 11,84,0,8,3,30,28,42,39,54,49,57,27,64,52,76,21,29,24,37,27,45,20,13,13,
7,12,8,0,8,0,0,0,0,0,0,0,7,3,22,25,22,16,36,21,96,96,104,82,133,103,125,118,
152,135,143,130,140,108,92,0,143,150,243,206,306,305,299,297,790,843,1125,1125,
1125,1110,930]} 1. e4 {[%emt 0:00:04]} c5 {[%emt 0:00:16]} 2. Nf3 {[%emt 0:00:
00]} e6 {[%emt 0:00:24]} 3. d4 {[%emt 0:00:30]} cxd4 {[%emt 0:00:41]} 4. Nxd4 {
[%emt 0:00:02]} Nf6 {[%emt 0:00:04]} 5. Nc3 {[%emt 0:00:16]} Nc6 {[%emt 0:00:
00]} 6. a3 {[%emt 0:00:49]} Be7 {[%emt 0:06:39]} 7. Nxc6 {[%emt 0:01:02] B45:
Sicilian Four Knights.} dxc6 {[%emt 0:03:30]} 8. Qxd8+ {[%emt 0:16:25]} Bxd8 {
[%emt 0:00:05]} 9. e5 {[%emt 0:01:03] White is slightly better.} Ng4 {[%emt 0:
00:00]} 10. f4 $1 {[%emt 0:01:34]} Bb6 {[%emt 0:16:18]} 11. Ne4 {[%emt 0:16:57]
Against Nf2} (11. Be2 $5 {[%cal Re2g4]} h5 12. Ne4 $14) 11... f5 {[%emt 0:00:
00]} 12. exf6 {[%emt 0:01:22]} Nxf6 {[%emt 0:00:56]} 13. Nxf6+ {[%emt 0:06:18]}
(13. Nd6+ $16 Ke7 14. Nc4) 13... gxf6 $11 {[%emt 0:00:05]} 14. Bd2 {[%emt 0:00:
00]} Bd7 {[%emt 0:05:01] [#]} 15. O-O-O $146 {[%emt 0:01:02]} ({Predecessor:} 
15. Bc3 Ke7 16. g3 Rad8 17. O-O-O Be8 18. Rxd8 Bxd8 19. Bb4+ Kf7 20. Bc4 f5 21.
Re1 {1-0 (56) Babiy,O (2333)-Rakhmangulova,A (2219) Konya 2018}) 15... O-O-O {
[%emt 0:01:44]} 16. Be2 {[%emt 0:03:50]} h5 {[%emt 0:07:03]} 17. Rhf1 {[%emt 0:
00:00]} h4 {[%emt 0:00:00]} 18. Bc3 {[%emt 0:02:34]} Rh6 {[%emt 0:00:00]} 19.
Kb1 {[%emt 0:02:01]} Bc7 {[%emt 0:10:04]} 20. Bd2 {[%emt 0:12:09]} Rg6 {
[%emt 0:00:19]} 21. Bf3 {[%emt 0:00:39]} e5 {[%emt 0:08:32]} 22. fxe5 {[%emt 0:
00:00]} Bxe5 {[%emt 0:00:04]} 23. h3 {[%emt 0:00:30] Against Bg4} Be6 {[%emt 0:
00:00]} 24. Ba5 {[%emt 0:05:22][%csl Ga5][%cal Rd1d8] [#]} b6 {[%emt 0:01:54]}
25. Rxd8+ {[%emt 0:02:08]} Kxd8 {[%emt 0:00:04]} 26. Be1 {[%emt 0:01:21]} Bc4 {
[%emt 0:04:05]} 27. Rh1 {[%emt 0:00:33]} Bg3 {[%emt 0:01:13]} (27... Bd5 $1 $11
{remains equal.}) 28. Bxc6 $16 {[%emt 0:05:24]} Kc7 {[%emt 0:00:50]} 29. Bf3 {
[%emt 0:02:16]} Kd6 {[%emt 0:01:43]} (29... Bb5 $142) 30. Bb4+ {[%emt 0:01:12]}
Ke6 {[%emt 0:00:40]} 31. Rd1 {[%emt 0:01:40] Prevents Bd5.} Rg5 {[%emt 0:01:38]
} 32. Bc3 {[%emt 0:05:20]} Rg7 {[%emt 0:00:36]} 33. b3 {[%emt 0:00:46]} Ba6 {
[%emt 0:00:09]} 34. Bd5+ {[%emt 0:04:02]} Kf5 {[%emt 0:00:21]} 35. Bf3 {
[%emt 0:01:21]} (35. a4 $142) 35... Ke6 $1 {[%emt 0:00:21]} 36. Bg4+ {[%emt 0:
00:00]} Rxg4 {[%emt 0:01:08]} (36... Kf7 $16 37. Rd7+ Kg6) 37. hxg4 {[%emt 0:
00:00] Endgame KRB-KB} Be2 {[%emt 0:02:31]} (37... Bb5 {might work better.} 38.
Be1 Ke5 39. Bc3+ Ke6) 38. Rd4 $18 {[%emt 0:02:02] [#] Strongly threatening
Re4+.} Bf1 {[%emt 0:00:00]} 39. Rd2 {[%emt 0:00:33]} Bd6 $2 {[%emt 0:00:00]} (
39... Ba6 40. Bd4 Be1) 40. Rf2 {[%emt 0:00:28][%csl Yf1,Yf6] White is clearly
winning.} Bxg2 {[%emt 0:00:00]} 41. Rxg2 {[%emt 0:02:20]} h3 {[%emt 0:00:00]}
42. Rf2 {[%emt 0:01:08]} Kd5 {[%emt 0:04:03] Weighted Error Value: White=0.11 
(very precise) /Black=0.21 (precise)} 1-0